bitfinex/quotes_SOLUSD_20220114
["timestamp","ask_amount","ask_price","bid_price","bid_amount"]
[1642200235133,89.719,147.08,147.07,2.719]
[1642200235537,453.519,147.08,147.07,2.719]
[1642200235736,450.8,147.08,147.07,2.719]
[1642200236036,450.8,147.08,147.05,10.198]
[1642200236237,459.57372394,147.09,147.05,10.198]
[1642200237538,459.57372394,147.09,147.05,19.878]
[1642200240242,456.85472394,147.09,147.05,22.597]
[1642200240443,456.85472394,147.09,147.05,19.878]
[1642200240844,462.85472394,147.09,147.05,19.878]
[1642200241042,462.85472394,147.09,147.05,9.68]
[1642200241441,463.10472394,147.09,147.05,9.68]
[1642200241645,2.719,147.08,147.05,9.68]
[1642200241944,8.719,147.08,147.03,14.85235566]
[1642200242143,459.519,147.08,147.03,24.53235566]
[1642200242345,456.8,147.08,147.03,24.78235566]
[1642200242545,456.8,147.08,147.03,24.53235566]
[1642200242745,456.8,147.08,147.03,24.78235566]
[1642200243343,456.8,147.08,147.04,1.93455566]
[1642200244542,457.06,147.08,147.03,14.85235566]
[1642200245544,457.06,147.08,147.03,15.10235566]
[1642200245744,457.06,147.08,147.03,14.85235566]
[1642200247347,457.06,147.08,147.03,15.10235566]
[1642200247546,457.06,147.08,147.03,14.85235566]
[1642200247947,2.72,147.07,147.03,12.13335566]
[1642200248346,8.72,147.07,147.03,12.13335566]
[1642200249454,8.72,147.07,147.03,1.93455566]
[1642200250149,8.72,147.07,147.02,469.55208792]
[1642200250350,8.72,147.07,147.02,469.80208792]
[1642200252053,457.06,147.07,147.02,469.80208792]
[1642200254054,457.06,147.07,147.02,467.86753226]
[1642200254455,2.72,147.06,147.02,467.86753226]
[1642200254853,8.72,147.06,147.02,467.86753226]
[1642200255756,6.0,147.06,147.02,467.86753226]
[1642200255956,0.26,147.06,147.02,469.80208792]
[1642200256456,456.8,147.07,147.02,469.80208792]
[1642200256656,457.06,147.07,147.02,469.80208792]
[1642200260299,457.06,147.07,147.02,469.55208792]
[1642200260996,457.06,147.07,147.02,472.27208792]
[1642200263795,2.72,147.06,147.02,472.27208792]
[1642200264095,459.52,147.06,147.02,472.27208792]
[1642200264495,456.8,147.06,147.02,472.27208792]
[1642200265400,456.8,147.06,147.02,462.59208792]
[1642200266898,2.72,147.05,147.02,459.87208792]
[1642200267097,6.05472394,147.04,147.02,459.87208792]
[1642200267498,12.05472394,147.04,147.02,459.87208792]
[1642200267698,12.31472394,147.04,147.02,457.93753226]
[1642200269002,12.31472394,147.04,147.02,459.87208792]
[1642200269799,12.31472394,147.04,147.02,462.59208792]
[1642200270000,6.26,147.04,147.02,462.59208792]
[1642200270202,0.26,147.04,147.02,462.59208792]
[1642200270407,456.8,147.06,147.02,462.59208792]
[1642200270601,457.06,147.06,147.02,462.59208792]
[1642200270804,457.06,147.06,147.02,459.87208792]
[1642200274506,457.31,147.06,147.02,459.87208792]
[1642200274708,2.72,147.05,147.02,459.87208792]
[1642200275009,6.05472394,147.04,147.02,459.87208792]
[1642200275209,6.05472394,147.04,147.02,457.93753226]
[1642200275409,12.05472394,147.04,147.02,457.93753226]
[1642200278755,12.31472394,147.04,147.02,457.93753226]
[1642200280358,463.11472394,147.04,147.02,457.93753226]
[1642200289094,460.09219997,147.04,147.02,457.93753226]
[1642200289796,457.06,147.04,147.02,457.93753226]
[1642200293001,457.06,147.04,147.02,459.87208792]
[1642200295705,457.06,147.04,147.02,469.55208792]
[1642200302914,457.06,147.04,147.02,469.80208792]
[1642200303816,457.06,147.04,147.02,472.52208792]
[1642200304014,457.06,147.04,147.03,1.93455566]
[1642200309951,451.06,147.04,147.03,1.93455566]
[1642200311448,457.06,147.04,147.03,1.93455566]
[1642200311751,457.06,147.04,147.02,472.52208792]
[1642200311949,451.06,147.04,147.02,472.52208792]
[1642200312448,457.06,147.04,147.02,472.52208792]
[1642200313750,457.06,147.04,147.02,469.80208792]
[1642200315251,457.06,147.04,147.02,460.12208792]
[1642200344122,456.8,147.04,147.02,460.12208792]
[1642200344523,456.8,147.04,147.02,470.32178792]
[1642200345828,456.8,147.04,147.03,88.93455566]
[1642200346026,456.8,147.04,147.03,99.38335566]
[1642200346526,456.8,147.04,147.03,107.1288]
[1642200346925,456.8,147.04,147.03,20.1288]
[1642200347124,456.8,147.04,147.03,22.8488]
[1642200347924,456.3,147.04,147.03,22.8488]
[1642200348127,456.3,147.04,147.03,20.1288]
[1642200352930,456.3,147.04,147.03,19.8788]
[1642200355036,456.3,147.04,147.03,20.1288]
[1642200355337,456.3,147.04,147.03,22.06910572]
[1642200355839,456.3,147.04,147.03,20.1288]
[1642200359537,450.3,147.04,147.03,20.1288]
[1642200359738,400.3,147.04,147.03,221.3888]
[1642200360140,334.3,147.04,147.03,221.3888]
[1642200361144,334.3,147.04,147.03,229.11398467]
[1642200362043,334.3,147.04,147.03,231.83398467]
[1642200362442,334.3,147.04,147.03,231.57398467]
[1642200362844,307.14302804,147.04,147.03,231.57398467]
[1642200365544,238.8292,147.04,147.03,231.57398467]
[1642200365750,238.8292,147.04,147.03,32.53476055]
[1642200365751,115.8,147.04,147.03,32.53476055]
[1642200365944,54.8,147.04,147.03,32.53476055]
[1642200366271,2.72,147.11,147.07,10.1936]
[1642200366568,2.719,147.14,147.08,9.68]
[1642200366970,2.719,147.14,147.08,9.93]
[1642200367168,8.719,147.14,147.08,9.93]
[1642200367369,6.0,147.14,147.08,9.93]
[1642200367569,2.719,147.13,147.08,9.93]
[1642200367971,2.719,147.16,147.08,9.93]
[1642200368474,8.719,147.16,147.11,10.1936]
[1642200369372,8.979,147.16,147.11,10.1936]
[1642200369771,8.969,147.16,147.11,10.1936]
[1642200371180,9.229,147.16,147.11,10.1936]
[1642200371675,8.979,147.16,147.11,10.1936]
[1642200371877,8.979,147.16,147.11,10.4436]
[1642200375279,9.229,147.16,147.11,10.1936]
[1642200380288,6.51,147.16,147.11,10.1936]
[1642200380488,0.51,147.16,147.11,10.1936]
[1642200380689,6.51,147.16,147.11,10.1936]
[1642200381093,6.51,147.16,147.1,9.68]
[1642200381292,2.718,147.15,147.1,9.68]
[1642200381489,8.968,147.15,147.1,9.68]
[1642200381989,8.718,147.15,147.1,9.68]
[1642200382389,8.968,147.15,147.1,9.68]
[1642200382590,8.968,147.15,147.1,19.8745]
[1642200382791,6.25,147.15,147.1,19.8745]
[1642200382991,0.25,147.15,147.1,19.8745]
[1642200383295,6.25,147.15,147.1,19.8745]
[1642200383691,0.25,147.15,147.1,19.8745]
[1642200383893,6.51,147.15,147.1,19.8745]
[1642200384098,2.718,147.14,147.1,19.8745]
[1642200384296,9.228,147.15,147.1,19.8745]
[1642200384495,6.51,147.15,147.1,19.8745]
[1642200385226,6.26,147.15,147.1,19.8745]
[1642200385428,0.26,147.15,147.1,19.8745]
[1642200385622,6.26,147.15,147.1,19.8745]
[1642200386323,0.26,147.15,147.1,19.8745]
[1642200386529,8.968,147.16,147.1,19.8745]
[1642200386730,6.25,147.16,147.11,2.718]
[1642200387524,0.25,147.16,147.11,2.718]
[1642200387730,2.968,147.17,147.11,2.718]
[1642200387923,8.968,147.17,147.11,2.718]
[1642200390028,9.228,147.17,147.11,2.718]
[1642200390231,77.248,147.17,147.11,2.718]
[1642200390429,9.228,147.17,147.11,2.718]
[1642200392438,9.228,147.17,147.1,12.9125]
[1642200392635,9.228,147.17,147.1,2.718]
[1642200392835,19.4234,147.17,147.1,2.718]
[1642200393034,21.11032236,147.17,147.1,2.718]
[1642200393235,21.11032236,147.17,147.09,2.718]
[1642200393638,21.11032236,147.17,147.09,2.968]
[1642200393936,21.11032236,147.17,147.09,2.718]
[1642200394338,21.11032236,147.17,147.09,12.913]
[1642200396140,21.37032236,147.17,147.09,12.913]
[1642200399941,21.12032236,147.17,147.09,12.913]
[1642200400145,21.12032236,147.17,147.09,13.163]
[1642200400341,10.92492236,147.17,147.09,13.163]
[1642200401344,11.17492236,147.17,147.09,13.163]
[1642200402146,11.17492236,147.17,147.09,12.913]
[1642200402349,11.17492236,147.17,147.09,13.163]
[1642200402745,11.17492236,147.17,147.09,12.913]
[1642200403643,21.37042236,147.17,147.09,12.913]
[1642200405448,21.12042236,147.17,147.09,12.913]
[1642200406949,21.37042236,147.17,147.09,12.913]
[1642200408056,89.39042236,147.17,147.09,12.913]
[1642200408253,21.37042236,147.17,147.09,12.913]
[1642200408954,21.12042236,147.17,147.09,13.163]
[1642200409154,21.12042236,147.17,147.09,12.913]
[1642200410459,21.37042236,147.17,147.09,12.913]
[1642200410658,21.12042236,147.17,147.09,12.913]
[1642200410959,21.12042236,147.17,147.09,13.163]
[1642200411983,21.37042236,147.17,147.09,13.163]
[1642200413385,21.11042236,147.17,147.09,13.163]
[1642200413584,21.11042236,147.17,147.09,12.913]
[1642200413783,21.11042236,147.17,147.09,13.163]
[1642200413985,21.11042236,147.17,147.09,2.968]
[1642200415889,21.37042236,147.17,147.09,2.968]
[1642200420697,89.39042236,147.17,147.09,2.968]
[1642200424202,89.39042236,147.17,147.08,24.49995621]
[1642200424505,89.39042236,147.17,147.08,24.74995621]
[1642200425202,21.11042236,147.17,147.08,24.74995621]
[1642200425703,68.02,147.16,147.08,24.74995621]
[1642200425904,26.0422,147.15,147.08,24.74995621]
[1642200426106,26.2922,147.15,147.08,24.74995621]
[1642200426303,32.2922,147.15,147.08,24.74995621]
[1642200427907,32.2922,147.15,147.08,22.8438]
[1642200428805,29.5742,147.15,147.08,24.74995621]
[1642200429008,29.8342,147.15,147.08,24.74995621]
[1642200430306,29.5842,147.15,147.08,24.74995621]
[1642200431915,29.8342,147.15,147.08,24.74995621]
[1642200434117,6.26,147.15,147.08,24.74995621]
[1642200435416,0.26,147.15,147.08,24.74995621]
[1642200435715,6.0,147.15,147.08,24.74995621]
[1642200436317,32.6253,147.16,147.08,24.74995621]
[1642200439519,32.8853,147.16,147.08,24.74995621]
[1642200440720,32.8853,147.16,147.08,24.49995621]
[1642200442020,32.8853,147.16,147.08,24.74995621]
[1642200448863,32.6353,147.16,147.08,24.74995621]
[1642200450364,100.9053,147.16,147.08,24.74995621]
[1642200451464,32.8853,147.16,147.08,24.74995621]
[1642200457571,100.9053,147.16,147.08,24.74995621]
[1642200459581,32.8853,147.16,147.08,24.74995621]
[1642200463681,32.8853,147.16,147.08,22.03195621]
[1642200464107,32.6253,147.16,147.08,22.03195621]
[1642200467811,32.8853,147.16,147.08,22.03195621]
[1642200471118,32.8853,147.16,147.09,2.718]
[1642200472320,32.8853,147.16,147.08,24.74995621]
[1642200473920,32.6253,147.16,147.08,24.74995621]
[1642200477523,32.8853,147.16,147.08,24.74995621]
[1642200485130,32.6353,147.16,147.08,24.74995621]
[1642200486233,32.6353,147.16,147.09,1.90615621]
[1642200486432,30.1673,147.16,147.1,10.194]
[1642200489833,29.9173,147.16,147.1,10.194]
[1642200490063,29.9173,147.16,147.1,10.444]
[1642200490264,29.9173,147.16,147.1,20.124]
[1642200490864,29.9173,147.16,147.11,12.9112]
[1642200491065,29.9173,147.16,147.11,15.06735621]
[1642200492463,29.9173,147.16,147.11,13.1612]
[1642200494367,6.26,147.16,147.11,13.1612]
[1642200494568,0.26,147.16,147.11,13.1612]
[1642200494767,30.3158,147.18,147.11,13.1612]
[1642200494966,30.0658,147.18,147.11,13.1612]
[1642200496068,30.3258,147.18,147.11,13.1612]
[1642200498969,30.3258,147.18,147.11,15.06735621]
[1642200501270,30.3258,147.18,147.11,25.12775621]
[1642200503872,30.3258,147.18,147.11,34.80775621]
[1642200504974,30.3258,147.18,147.12,1.90615621]
[1642200505173,30.3258,147.18,147.12,12.09895621]
[1642200505373,30.3258,147.18,147.12,12.34895621]
[1642200506375,6.26,147.18,147.12,12.34895621]
[1642200506576,0.26,147.18,147.12,12.34895621]
[1642200506774,74.27,147.19,147.12,12.34895621]
[1642200508078,73.77,147.19,147.12,12.34895621]
[1642200508479,6.0,147.19,147.12,12.34895621]
[1642200508980,32.153,147.2,147.12,12.34895621]
[1642200509179,32.403,147.2,147.12,15.06695621]
[1642200509983,32.403,147.2,147.13,1.90615621]
[1642200510281,29.685,147.2,147.14,10.1916]
[1642200510481,29.945,147.2,147.14,10.4416]
[1642200511883,32.662,147.2,147.14,10.4416]
[1642200514490,29.945,147.2,147.14,10.4416]
[1642200515186,29.695,147.2,147.14,10.4416]
[1642200515384,23.435,147.2,147.14,10.4416]
[1642200516912,23.435,147.2,147.15,12.9078]
[1642200517314,23.435,147.2,147.15,13.1578]
[1642200517512,2.717,147.22,147.15,13.1578]
[1642200517712,3.94408205,147.23,147.15,13.1578]
[1642200517914,29.3751,147.22,147.15,13.1578]
[1642200518112,23.3751,147.22,147.15,13.1578]
[1642200518312,29.3751,147.22,147.15,13.1578]
[1642200519013,29.6351,147.22,147.15,13.1578]
[1642200519214,29.6351,147.22,147.15,10.4408]
[1642200521616,29.3851,147.22,147.15,10.4408]
[1642200522516,29.3851,147.22,147.16,9.68]
[1642200522720,29.3851,147.22,147.17,10.1894]
[1642200523117,29.3851,147.22,147.17,10.4394]
[1642200525921,28.3851,147.22,147.17,10.4394]
[1642200528129,6.26,147.22,147.17,10.4394]
[1642200528726,6.0,147.22,147.17,10.4394]
[1642200528926,6.0,147.22,147.18,9.68]
[1642200529124,6.0,147.22,147.2,10.1875]
[1642200529323,4.66392236,147.25,147.2,10.1875]
[1642200529524,4.66392236,147.25,147.2,10.4375]
[1642200529927,4.66392236,147.25,147.2,10.1875]
[1642200530124,10.66392236,147.25,147.2,10.1875]
[1642200530324,4.66392236,147.25,147.2,10.1875]
[1642200530529,2.717,147.25,147.2,10.1875]
[1642200530724,33.54042236,147.26,147.2,10.1875]
[1642200530926,33.79042236,147.26,147.2,10.1875]
[1642200532524,34.05042236,147.26,147.2,10.1875]
[1642200534424,33.79042236,147.26,147.2,10.1875]
[1642200535723,34.05042236,147.26,147.2,10.1875]
[1642200536326,33.80042236,147.26,147.2,10.4375]
[1642200536729,31.08442236,147.26,147.2,10.4375]
[1642200537933,29.1375,147.26,147.2,10.4375]
[1642200538330,29.1375,147.26,147.21,9.68]
[1642200538531,29.1375,147.26,147.21,26.1165]
[1642200540033,28.8775,147.26,147.21,20.1165]
[1642200541332,28.8775,147.26,147.21,19.8665]
[1642200542738,6.0,147.26,147.21,19.8665]
[1642200542937,2.716,147.27,147.21,19.8665]
[1642200543135,6.0,147.26,147.21,19.8665]
[1642200543337,2.716,147.27,147.21,19.8665]
[1642200543536,8.716,147.27,147.21,19.8665]
[1642200543736,8.976,147.27,147.21,19.8665]
[1642200543936,6.26,147.27,147.21,19.8665]
[1642200544337,0.26,147.27,147.21,19.8665]
[1642200544538,6.25,147.27,147.21,19.8665]
[1642200544738,2.716,147.26,147.21,19.8665]
[1642200544937,8.966,147.26,147.21,19.8665]
[1642200545137,8.716,147.26,147.21,19.8665]
[1642200545340,6.0,147.26,147.21,19.8665]
[1642200545538,10.66292236,147.27,147.21,19.8665]
[1642200545950,10.91292236,147.27,147.21,19.8665]
[1642200546341,8.966,147.27,147.21,19.8665]
[1642200547443,9.226,147.27,147.21,19.8665]
[1642200552676,8.226,147.27,147.21,19.8665]
[1642200553275,7.976,147.27,147.21,19.8665]
[1642200553481,7.976,147.27,147.21,20.1165]
[1642200553876,6.26,147.27,147.21,20.1165]
[1642200554075,0.26,147.27,147.21,20.1165]
[1642200554278,6.26,147.27,147.21,20.1165]
[1642200554479,6.25,147.27,147.21,20.1165]
[1642200554878,0.25,147.27,147.21,20.1165]
[1642200555078,6.0,147.27,147.21,20.1165]
[1642200555478,0.25,147.27,147.21,20.1165]
[1642200555680,0.25,147.27,147.21,9.93]
[1642200556481,98.0658,147.28,147.21,9.93]
[1642200556887,98.0658,147.28,147.21,9.68]
[1642200557788,98.0658,147.28,147.19,36.31555621]
[1642200557789,2.716,147.27,147.19,36.31555621]
[1642200558088,8.966,147.27,147.19,42.56555621]
[1642200558491,8.966,147.27,147.21,10.187]
[1642200558690,6.25,147.27,147.21,10.187]
[1642200558894,6.25,147.27,147.21,10.437]
[1642200559093,6.25,147.27,147.21,10.187]
[1642200559389,6.25,147.27,147.21,10.437]
[1642200559588,0.25,147.27,147.21,10.437]
[1642200559794,6.25,147.27,147.21,10.437]
[1642200561518,0.51,147.27,147.21,10.437]
[1642200561719,97.8158,147.28,147.21,10.437]
[1642200561720,98.0658,147.28,147.21,10.437]
[1642200561918,97.8158,147.28,147.21,10.437]
[1642200563318,98.0758,147.28,147.21,10.437]
[1642200564021,98.3258,147.28,147.21,10.437]
[1642200564320,98.3258,147.28,147.21,10.187]
[1642200564521,98.3258,147.28,147.21,10.437]
[1642200578338,98.3258,147.28,147.21,0.25]
[1642200578637,98.3258,147.28,147.2,2.15615621]
[1642200578839,2.716,147.27,147.2,2.15615621]
[1642200579038,8.966,147.27,147.2,2.15615621]
[1642200579244,8.966,147.27,147.2,0.25]
[1642200579442,23.2322,147.26,147.19,42.67895621]
[1642200579642,23.2322,147.26,147.19,52.35895621]
[1642200579842,29.2322,147.26,147.19,51.35895621]
[1642200580741,29.4822,147.26,147.19,27.77385621]
[1642200581141,2.716,147.25,147.19,27.77385621]
[1642200581544,8.966,147.25,147.19,27.77385621]
[1642200582242,8.966,147.25,147.19,25.8677]
[1642200582642,9.226,147.25,147.19,25.8677]
[1642200582842,2.966,147.25,147.19,25.8677]
[1642200583042,2.716,147.25,147.19,26.1177]
[1642200583644,23.2322,147.26,147.19,26.1177]
[1642200583844,23.4822,147.26,147.19,26.1177]
[1642200584345,23.4822,147.26,147.19,28.02385621]
[1642200584946,29.7422,147.26,147.19,28.02385621]
[1642200585946,29.4822,147.26,147.19,28.02385621]
[1642200586346,29.2322,147.26,147.19,28.02385621]
[1642200586544,23.2322,147.26,147.19,28.02385621]
[1642200586746,29.2322,147.26,147.19,28.02385621]
[1642200587047,29.2322,147.26,147.19,22.02385621]
[1642200587247,29.4922,147.26,147.19,22.02385621]
[1642200588148,29.4922,147.26,147.19,32.30385621]
[1642200588546,29.7422,147.26,147.19,32.30385621]
[1642200589553,29.2322,147.26,147.19,32.30385621]
[1642200591352,29.2322,147.26,147.2,2.716]
[1642200591550,29.4922,147.26,147.2,22.8334]
[1642200591952,29.4922,147.26,147.2,24.73955621]
[1642200592652,29.4922,147.26,147.2,22.02355621]
[1642200592853,29.4922,147.26,147.2,20.1174]
[1642200593453,6.26,147.26,147.2,20.1174]
[1642200593651,6.26,147.26,147.2,22.02355621]
[1642200593851,0.26,147.26,147.2,22.02355621]
[1642200594054,30.476,147.27,147.2,22.02355621]
[1642200595079,30.736,147.27,147.2,22.02355621]
[1642200595280,30.736,147.27,147.21,12.9029]
[1642200595481,30.736,147.27,147.21,13.1529]
[1642200597785,30.736,147.27,147.21,10.4369]
[1642200598383,30.736,147.27,147.21,10.1869]
[1642200598583,30.986,147.27,147.21,10.1869]
[1642200598782,2.716,147.26,147.21,10.1869]
[1642200598982,8.966,147.26,147.21,10.1869]
[1642200600082,8.976,147.26,147.21,10.1869]
[1642200602488,6.26,147.26,147.21,10.1869]
[1642200602689,0.26,147.26,147.21,10.1869]
[1642200602888,6.26,147.26,147.21,10.1869]
[1642200603090,6.0,147.26,147.21,10.1869]
[1642200603489,33.192,147.27,147.21,10.1869]
[1642200603689,33.442,147.27,147.21,10.1869]
[1642200604992,30.476,147.27,147.21,10.4369]
[1642200605792,30.476,147.27,147.21,16.4369]
[1642200605992,30.476,147.27,147.21,19.1529]
[1642200606796,30.736,147.27,147.21,19.1529]
[1642200613000,30.736,147.27,147.21,16.4369]
[1642200613199,30.736,147.27,147.21,18.34305621]
[1642200614007,30.736,147.27,147.21,16.4369]
[1642200615109,30.736,147.27,147.21,10.4369]
[1642200616605,30.736,147.27,147.21,16.4369]
[1642200618415,30.476,147.27,147.21,16.1869]
[1642200619511,30.476,147.27,147.21,18.09305621]
[1642200619912,30.476,147.27,147.21,18.34305621]
[1642200621212,30.476,147.27,147.21,16.4369]
[1642200622041,30.736,147.27,147.21,16.4369]
[1642200625650,30.476,147.27,147.21,16.4369]
[1642200627346,6.0,147.27,147.21,16.4369]
[1642200627546,32.9457,147.29,147.21,16.4369]
[1642200627749,6.0,147.27,147.21,16.4369]
[1642200627950,32.9457,147.29,147.21,16.4369]
[1642200628852,33.1957,147.29,147.21,16.4369]
[1642200629454,33.4557,147.29,147.21,16.4369]
[1642200637460,33.2057,147.29,147.21,16.4369]
[1642200638959,33.4557,147.29,147.21,16.4369]
[1642200640591,30.7397,147.29,147.21,16.4369]
[1642200641290,30.4897,147.29,147.21,16.4369]
[1642200641494,68.02,147.28,147.21,16.4369]
[1642200641691,68.02,147.28,147.2,4.6089814]
[1642200641893,26.8742,147.27,147.2,1.8929814]
[1642200642090,32.8742,147.27,147.2,1.8929814]
[1642200642290,100.8942,147.27,147.2,1.8929814]
[1642200642490,101.1442,147.27,147.2,1.8929814]
[1642200643294,33.1242,147.27,147.2,1.8929814]
[1642200643491,33.1242,147.27,147.2,2.1429814]
[1642200643693,30.4082,147.27,147.2,0.25]
[1642200643891,33.1242,147.27,147.2,0.25]
[1642200644492,33.1242,147.27,147.19,2.1429814]
[1642200644694,33.1242,147.27,147.19,1.8929814]
[1642200644894,33.1242,147.27,147.19,2.1429814]
[1642200645094,33.1242,147.27,147.19,1.8929814]
[1642200645495,33.3842,147.27,147.19,1.8929814]
[1642200646900,33.1342,147.27,147.19,1.8929814]
[1642200648400,33.3842,147.27,147.19,1.8929814]
[1642200648804,33.3842,147.27,147.19,2.1429814]
[1642200649002,33.1342,147.27,147.19,12.3310814]
[1642200649404,30.4182,147.27,147.19,12.3310814]
[1642200650004,30.1582,147.27,147.19,12.3310814]
[1642200650505,30.4082,147.27,147.19,12.3310814]
[1642200652311,30.1582,147.27,147.19,12.3310814]
[1642200653710,30.4182,147.27,147.19,12.3310814]
[1642200653913,30.4182,147.27,147.2,1.8929814]
[1642200654514,30.4182,147.27,147.19,12.3310814]
[1642200655612,30.4182,147.27,147.19,18.3310814]
[1642200657014,30.6682,147.27,147.19,18.0810814]
[1642200659317,30.4182,147.27,147.19,18.3310814]
[1642200660318,30.4182,147.27,147.2,4.6089814]
[1642200660521,30.4182,147.27,147.2,10.8589814]
[1642200660718,30.6682,147.27,147.2,10.8589814]
[1642200661319,30.6682,147.27,147.2,21.0465814]
[1642200661520,30.6682,147.27,147.2,18.3305814]
[1642200662319,30.6682,147.27,147.2,18.0805814]
[1642200662719,33.3842,147.27,147.2,18.0805814]
[1642200664226,33.3842,147.27,147.2,16.1876]
[1642200665524,101.4042,147.27,147.2,16.1876]
[1642200665724,33.3842,147.27,147.2,6.0]
[1642200665928,33.3842,147.27,147.19,10.6089814]
[1642200666124,33.3842,147.27,147.19,1.8929814]
[1642200666343,33.3842,147.27,147.19,7.8929814]
[1642200666544,33.1242,147.27,147.19,7.8929814]
[1642200666747,33.1242,147.27,147.19,8.1429814]
[1642200667648,30.4082,147.27,147.2,4.6089814]
[1642200668047,30.4082,147.27,147.2,10.8589814]
[1642200668247,30.1582,147.27,147.2,8.1429814]
[1642200668449,30.4082,147.27,147.2,8.1429814]
[1642200669051,30.4082,147.27,147.2,7.8929814]
[1642200670049,30.4082,147.27,147.2,8.1429814]
[1642200670251,30.6682,147.27,147.2,8.1429814]
[1642200670448,30.6682,147.27,147.2,2.1429814]
[1642200670751,30.4082,147.27,147.2,2.1429814]
[1642200670948,30.4082,147.27,147.2,1.8929814]
[1642200672350,30.6682,147.27,147.2,1.8929814]
[1642200672548,30.4182,147.27,147.2,2.1429814]
[1642200673750,30.6682,147.27,147.2,2.1429814]
[1642200675253,30.6682,147.27,147.2,1.8929814]
[1642200676156,30.6682,147.27,147.19,14.7971814]
[1642200676458,33.3842,147.27,147.19,12.3311814]
[1642200678557,32.8742,147.27,147.19,22.0111814]
[1642200678759,30.1582,147.27,147.21,10.1866]
[1642200678961,6.0,147.27,147.21,20.1166]
[1642200679358,7.93724732,147.28,147.21,20.1166]
[1642200679961,6.0,147.28,147.21,22.0095814]
[1642200680363,10.65324732,147.3,147.21,22.0095814]
[1642200680660,23.8806,147.29,147.21,22.0095814]
[1642200681162,30.1306,147.29,147.22,12.0786814]
[1642200681562,30.1306,147.29,147.22,12.3286814]
[1642200681761,6.25,147.29,147.22,12.3286814]
[1642200681963,0.25,147.29,147.22,12.0786814]
[1642200682164,6.25,147.29,147.22,12.0786814]
[1642200682362,6.0,147.29,147.22,1.8929814]
[1642200682561,68.02,147.28,147.22,1.8929814]
[1642200682761,70.736,147.28,147.22,1.8929814]
[1642200682963,77.246,147.28,147.22,1.8929814]
[1642200683163,77.246,147.28,147.21,1.8929814]
[1642200683366,24.2072,147.27,147.21,1.8929814]
[1642200683565,24.4572,147.27,147.21,1.8929814]
[1642200683765,30.2072,147.27,147.21,1.8929814]
[1642200683966,30.4572,147.27,147.2,12.0800814]
[1642200684164,2.716,147.26,147.2,12.0800814]
[1642200684366,33.1732,147.27,147.2,12.0800814]
[1642200684770,33.1732,147.27,147.2,1.8929814]
[1642200684968,33.1732,147.27,147.2,2.1429814]
[1642200685569,30.4572,147.27,147.2,2.1429814]
[1642200686473,30.4572,147.27,147.2,12.3305814]
[1642200687775,30.4572,147.27,147.2,15.0465814]
[1642200688475,30.4572,147.27,147.2,21.0465814]
[1642200688876,6.25,147.27,147.21,1.8929814]
[1642200689076,0.25,147.27,147.21,18.3296814]
[1642200689286,6.25,147.27,147.21,12.3296814]
[1642200689881,0.25,147.27,147.21,18.3296814]
[1642200690079,6.0,147.27,147.21,18.3296814]
[1642200690478,8.716,147.29,147.21,18.3296814]
[1642200690777,0.26,147.29,147.22,12.9022]
[1642200690979,6.0,147.29,147.22,16.4362]
[1642200691178,6.0,147.29,147.22,10.4362]
[1642200691480,32.37644732,147.3,147.22,10.4362]
[1642200691678,30.4392,147.3,147.22,10.4362]